bitfinex/quotes_ETHUSD_20250319
["timestamp","ask_amount","ask_price","bid_price","bid_amount"]
[1742351870989,8.78542571,1936.2,1936.1,0.12929502]
[1742351873692,5.16463,1936.3,1936.1,0.12929502]
[1742351873693,0.79,1936.9,1936.2,8.34898]
[1742351873902,3.62067571,1936.5,1936.2,3.1843]
[1742351874071,3.62067571,1936.5,1936.3,0.12876312]
[1742351874396,8.78489571,1936.4,1936.3,0.12876312]
[1742351874592,8.78489571,1936.4,1936.3,38.12876312]
[1742351875899,3.62067571,1936.4,1936.3,38.12876312]
[1742351876469,8.78476571,1936.5,1936.3,38.12876312]
[1742351878420,5.16409,1936.5,1936.3,38.12876312]
[1742351878718,8.78476571,1936.5,1936.3,38.12876312]
[1742351878918,3.62067571,1936.4,1936.3,38.12876312]
[1742351881369,8.78476571,1936.5,1936.3,38.12876312]
[1742351882707,5.16422,1936.4,1936.3,38.12876312]
[1742351882908,8.78489571,1936.4,1936.3,38.12876312]
[1742351884402,8.78476571,1936.5,1936.4,3.0]
[1742351884803,8.78436571,1936.6,1936.4,3.12807664]
[1742351886629,3.62067571,1936.5,1936.4,3.12807664]
[1742351887528,8.78436571,1936.6,1936.4,3.12807664]
[1742351887738,8.78409571,1936.7,1936.4,3.12807664]
[1742351888036,13.94773571,1936.7,1936.4,3.12807664]
[1742351889901,8.78437571,1936.6,1936.4,3.12807664]
[1742351890641,8.78437571,1936.6,1936.4,0.12807664]
[1742351890791,5.16395,1936.5,1936.4,0.67807664]
[1742351890990,5.16395,1936.5,1936.4,0.55]
[1742351891233,8.78437571,1936.6,1936.5,3.0]
[1742351891623,8.78437571,1936.6,1936.5,3.12748781]
[1742351894324,8.78437571,1936.6,1936.5,0.12748781]
[1742351894525,5.16422,1936.4,1936.3,3.0]
[1742351894829,8.78489571,1936.4,1936.3,38.0]
[1742351898231,8.78489571,1936.4,1936.3,38.12237866]
[1742351902011,9.59049571,1936.4,1936.3,35.12237866]
[1742351911022,5.16582,1935.8,1935.7,1.03085096]
[1742351911233,8.78649571,1935.8,1935.5,0.1843]
[1742351911446,8.78702571,1935.6,1935.5,3.1843]
[1742351912154,3.62067571,1935.6,1935.5,38.1843]
[1742351912545,8.78702571,1935.6,1935.5,38.0]
[1742351913254,8.78702571,1935.6,1935.5,38.12008415]
[1742351914935,8.78702571,1935.6,1935.5,35.12008415]
[1742351915139,9.9119411,1935.6,1935.5,35.12008415]
[1742351915465,8.78702571,1935.6,1935.5,35.12008415]
[1742351917456,5.16635,1935.6,1935.5,35.12008415]
[1742351919763,5.16635,1935.6,1935.5,38.12008415]
[1742351922970,13.95308571,1935.7,1935.5,38.12008415]
[1742351923174,5.16635,1935.6,1935.5,38.12008415]
[1742351925449,8.78677571,1935.7,1935.5,38.12008415]
[1742351925834,8.78677571,1935.7,1935.6,3.0]
[1742351926045,8.78677571,1935.7,1935.5,0.12008415]
[1742351926235,8.78677571,1935.7,1935.6,0.12040764]
[1742351926454,8.78677571,1935.7,1935.6,38.12040764]
[1742351926655,5.16585,1935.8,1935.6,38.0]
[1742351926852,5.16585,1935.8,1935.6,38.12040764]
[1742351927047,5.16581,1935.9,1935.7,3.1843]
[1742351927573,5.16581,1935.9,1935.8,0.12004031]
[1742351929432,8.78648571,1935.9,1935.8,0.12004031]
[1742351929631,9.57328571,1935.9,1935.8,0.12004031]
[1742351929836,11.04714328,1935.9,1935.8,0.12004031]
[1742351930463,11.04714328,1935.9,1935.4,4.01840293]
[1742351930464,5.16638,1935.6,1935.4,4.01840293]
[1742351931041,5.16638,1935.6,1935.5,38.0]
[1742351931240,5.95318,1935.6,1935.5,38.0]
[1742351933039,5.16638,1935.6,1935.5,38.0]
[1742351942267,8.78649571,1935.8,1935.5,38.0]
[1742351942470,3.62067571,1935.8,1935.6,3.1843]
[1742351942782,8.78591571,1936.1,1935.8,3.0]
[1742351943080,8.78591571,1936.1,1935.8,3.1843]
[1742351943279,3.62067571,1936.0,1935.9,0.11999337]
[1742351943660,3.62067571,1936.0,1935.8,3.1843]
[1742351943857,3.62067571,1936.0,1935.9,0.11987794]
[1742351944175,3.62067571,1936.0,1935.8,4.1794763]
[1742351944479,3.62067571,1935.9,1935.8,0.1843]
[1742351944645,3.62067571,1936.0,1935.8,0.1843]
[1742351945780,8.78573571,1936.1,1935.8,0.1843]
[1742351945957,13.95088571,1936.1,1935.8,0.1843]
[1742351946152,3.62067571,1936.0,1935.8,0.1843]
[1742351946359,3.62067571,1936.0,1935.8,1.074327]
[1742351947747,3.62067571,1936.0,1935.8,6.240137]
[1742351947950,3.62067571,1936.1,1935.8,6.240137]
[1742351948267,3.62067571,1936.1,1936.0,3.0]
[1742351948866,3.62067571,1936.1,1936.0,38.0]
[1742351949281,5.16474,1936.3,1936.0,38.96359584]
[1742351949478,3.62067571,1936.2,1936.0,38.96359584]
[1742351949646,5.96469,1936.5,1936.0,44.12887584]
[1742351949848,3.62067571,1936.4,1936.1,0.1843]
[1742351950352,3.62067571,1936.3,1936.1,0.1843]
[1742351950570,3.62067571,1936.3,1936.1,1.074327]
[1742351952981,5.16424,1936.4,1936.2,35.0]
[1742351953187,3.62067571,1936.3,1936.2,35.0]
[1742351953381,9.58565571,1936.3,1936.2,35.0]
[1742351958203,9.58565571,1936.3,1936.2,35.11875313]
[1742351958384,11.54974528,1936.3,1936.2,0.11875313]
[1742351958600,5.16523,1936.1,1935.9,6.14]
[1742351958777,8.78595571,1936.0,1935.9,9.14]
[1742351959306,8.78595571,1936.0,1935.9,38.0]
[1742351960017,9.58645571,1936.0,1935.9,38.0]
[1742351960313,14.68229999,1936.0,1935.9,38.0]
[1742351960670,11.06162428,1936.0,1935.9,38.0]
[1742351961295,14.68229999,1936.0,1935.9,35.0]
[1742351963286,5.96578,1936.0,1935.9,35.0]
[1742351963596,8.78595571,1936.0,1935.9,35.0]
[1742351963766,5.16528,1936.0,1935.9,35.0]
[1742351963967,8.78595571,1936.0,1935.9,35.0]
[1742351964197,5.16523,1936.1,1935.9,35.0]
[1742351964374,4.38777571,1936.4,1936.0,3.0]
[1742351964565,8.78517571,1936.3,1936.0,3.0]
[1742351964772,5.16424,1936.4,1936.0,3.0]
[1742351965076,3.62067571,1936.3,1936.1,0.1843]
[1742351965409,8.78491571,1936.4,1936.1,0.1843]
[1742351965568,3.62067571,1936.2,1936.1,0.50273]
[1742351965769,8.78491571,1936.4,1936.1,1.05273]
[1742351966076,3.62067571,1936.4,1936.1,1.05273]
[1742351967199,3.62067571,1936.3,1936.1,1.05273]
[1742351967609,5.16369,1936.6,1936.2,8.71457]
[1742351967811,5.16369,1936.6,1936.3,0.871457]
[1742351967812,3.62067571,1936.5,1936.3,0.871457]
[1742351968226,3.62067571,1936.6,1936.3,0.871457]
[1742351968422,3.62067571,1936.5,1936.3,6.035907]
[1742351968701,3.62067571,1936.6,1936.4,0.1843]
[1742351968907,3.62067571,1936.5,1936.4,0.1843]
[1742351969068,3.62067571,1936.5,1936.4,0.8063097]
[1742351969471,3.62067571,1936.5,1936.4,35.8063097]
[1742351969990,3.62067571,1936.5,1936.4,35.0]
[1742351972502,8.78462571,1936.5,1936.4,38.0]
[1742351973201,8.78462571,1936.5,1936.4,38.10579784]
[1742351975725,3.62067571,1936.5,1936.4,38.10579784]
[1742351976333,3.62067571,1936.6,1936.4,38.10579784]
[1742351976789,3.62067571,1936.6,1936.5,3.0]
[1742351977104,3.62067571,1936.7,1936.5,3.28989885]
[1742351977311,8.78408571,1936.8,1936.5,3.28989885]
[1742351977512,3.62067571,1936.7,1936.5,3.28989885]
[1742351978987,3.62067571,1936.7,1936.5,8.45382885]
[1742351979613,3.62067571,1936.7,1936.5,9.4778956]
[1742351980023,3.62067571,1936.8,1936.6,35.0]
[1742351980321,3.62067571,1936.7,1936.6,38.0]
[1742351980526,3.62067571,1936.8,1936.6,38.0]
[1742351981324,5.16292,1936.9,1936.6,43.16368]
[1742351981325,3.62067571,1936.9,1936.6,43.16368]
[1742351981730,3.62067571,1936.9,1936.6,38.0]
[1742351982030,3.62067571,1936.8,1936.6,38.0]
[1742351982820,3.62067571,1936.7,1936.6,38.0]
[1742351984326,10.17883928,1936.7,1936.6,38.0]
[1742351984922,8.78409571,1936.7,1936.6,38.0]
[1742351985897,3.62067571,1936.7,1936.6,38.0]
[1742351988230,3.62067571,1936.7,1936.6,38.10529116]
[1742351989624,8.78409571,1936.7,1936.6,38.10529116]
[1742351993531,9.54769571,1936.7,1936.6,38.10529116]
[1742351993739,11.38085885,1936.7,1936.6,3.10529116]
[1742351994141,11.38085885,1936.7,1936.6,35.10529116]
[1742351997228,11.38085885,1936.7,1936.6,0.10529116]
[1742351997458,5.1644,1936.4,1936.2,3.0]
[1742351997760,8.78515571,1936.3,1936.2,3.0]
[1742351998127,5.1648,1936.2,1935.9,4.75504619]
[1742351998326,3.62067571,1936.2,1935.9,4.75504619]
[1742351998622,3.62067571,1936.2,1936.1,38.0]
[1742352000321,8.78542571,1936.2,1936.1,38.0]
[1742352001048,3.62067571,1936.2,1936.1,38.0]
[1742352003464,3.62067571,1936.2,1936.1,38.10260961]
[1742352004432,8.78542571,1936.2,1936.1,38.10260961]
[1742352005261,10.18042028,1936.2,1936.1,38.10260961]
[1742352005465,10.94832028,1936.2,1936.1,35.10260961]
[1742352007661,5.16435,1936.4,1936.1,35.10260961]
[1742352007861,8.78502571,1936.4,1936.1,35.10260961]
[1742352008034,3.62067571,1936.4,1936.2,3.0]
[1742352008235,3.62067571,1936.5,1936.3,0.1843]
[1742352008433,3.62067571,1936.6,1936.3,0.61554646]
[1742352008649,3.62067571,1936.6,1936.4,3.0]
[1742352008850,5.54171057,1936.9,1936.4,3.0]
[1742352008851,5.16334,1936.8,1936.4,3.10237069]
[1742352009059,3.62067571,1936.6,1936.5,35.0]
[1742352009447,3.62067571,1936.6,1936.5,35.10220233]
[1742352010981,3.62067571,1936.6,1936.5,38.10220233]
[1742352011184,3.62067571,1936.7,1936.6,3.0]
[1742352011699,3.62067571,1936.7,1936.6,3.10173751]
[1742352011884,3.62067571,1936.9,1936.7,0.1843]
[1742352012362,3.62067571,1936.9,1936.8,0.10137064]
[1742352012794,8.78355571,1936.9,1936.8,0.10137064]
[1742352013082,5.16316,1936.8,1936.6,38.0]
[1742352013290,3.62067571,1936.7,1936.6,38.0]
[1742352013881,3.62067571,1936.8,1936.6,38.0]
[1742352015377,3.62067571,1936.7,1936.6,38.0]
[1742352015979,3.62067571,1936.8,1936.6,38.0]
[1742352017579,3.62067571,1936.7,1936.6,38.0]
[1742352018282,3.62067571,1936.7,1936.6,38.10139873]
[1742352020046,8.78409571,1936.7,1936.6,38.10139873]
[1742352020246,3.62067571,1936.7,1936.6,38.10139873]
[1742352021819,3.62067571,1936.8,1936.6,38.10139873]
[1742352022070,8.78383571,1936.8,1936.6,38.10139873]
[1742352022372,3.62067571,1936.8,1936.6,38.10139873]
[1742352024847,3.62067571,1936.9,1936.6,43.26507873]
[1742352025046,3.62067571,1936.9,1936.6,43.26504873]
[1742352025773,3.62067571,1936.8,1936.6,38.10139873]
[1742352026370,3.62067571,1936.8,1936.6,43.26505873]
[1742352026565,3.62067571,1936.9,1936.8,3.0]
[1742352026879,3.62067571,1936.9,1936.8,0.10100767]
[1742352027748,8.78302571,1937.1,1936.8,0.10100767]
[1742352027947,3.62067571,1937.1,1936.8,1.00087544]
[1742352028151,8.78276571,1937.2,1936.8,8.26392767]
[1742352028482,3.62067571,1937.2,1937.0,3.0]
[1742352028852,3.62067571,1937.2,1937.1,0.10050287]
[1742352029049,8.78275571,1937.2,1937.1,0.10050287]
[1742352030247,8.78275571,1937.2,1937.1,35.10050287]
[1742352030480,5.16193,1937.3,1937.1,35.10050287]
[1742352030687,3.62067571,1937.2,1937.1,35.10050287]
[1742352030978,8.78223571,1937.4,1937.1,35.10050287]
[1742352031478,3.62067571,1937.4,1937.2,3.0]
[1742352031850,3.62067571,1937.4,1937.3,0.1000636]
[1742352032083,3.62067571,1937.4,1937.3,35.1000636]
[1742352032459,3.62067571,1937.4,1937.3,35.15698102]
[1742352032987,8.78222571,1937.4,1937.3,35.15698102]
[1742352033597,3.62067571,1937.4,1937.3,35.15698102]
[1742352033966,4.43807571,1937.6,1937.4,3.0]
[1742352034293,3.62067571,1937.5,1937.2,4.01922101]
[1742352034591,3.62067571,1937.5,1937.4,38.0]
[1742352035475,10.32183,1937.7,1937.4,38.0]
[1742352035683,3.62067571,1937.5,1937.4,38.0]
[1742352037266,8.78196571,1937.5,1937.4,38.0]
[1742352037764,5.16129,1937.5,1937.4,38.0]
[1742352037963,8.78196571,1937.5,1937.4,38.0]
[1742352038197,3.62067571,1937.5,1937.4,38.0]
[1742352038889,5.16106,1937.6,1937.4,38.0]
[1742352038890,8.78173571,1937.6,1937.4,38.0]
[1742352039674,13.94294571,1937.6,1937.4,38.0]
[1742352039878,13.94293571,1937.6,1937.4,38.0]
[1742352040079,8.78173571,1937.6,1937.4,38.0]
[1742352040283,13.94291571,1937.6,1937.4,38.0]
[1742352040483,13.94291571,1937.6,1937.4,3.0]
[1742352040895,13.94291571,1937.6,1937.5,35.0]
[1742352041101,8.78173571,1937.6,1937.5,35.0]
[1742352041304,5.16078,1937.7,1937.5,35.0]
[1742352041474,8.78153571,1937.7,1937.5,35.0]
[1742352041676,8.78169571,1937.6,1937.5,38.0]
[1742352045001,5.16102,1937.6,1937.5,38.0]
[1742352045205,8.78169571,1937.6,1937.5,38.0]
[1742352047814,3.62067571,1937.6,1937.5,38.0]
[1742352048108,3.62067571,1937.7,1937.5,38.0]
[1742352048310,3.62067571,1937.7,1937.5,38.15604624]
[1742352048608,3.59332163,1937.7,1937.5,38.15604624]
[1742352049186,8.78169571,1937.6,1937.5,38.15604624]
[1742352053007,13.23517142,1937.6,1937.5,35.15604624]
[1742352053208,13.23517142,1937.6,1937.5,0.15604624]
[1742352053504,5.16268,1937.0,1936.7,5.0683]
[1742352053705,8.78335571,1937.0,1936.7,5.0683]
[1742352053907,13.94622571,1937.0,1936.8,3.14641642]
[1742352054113,5.16268,1937.0,1936.8,3.14641642]
[1742352054407,13.94560571,1937.1,1936.9,35.0]
[1742352054581,8.78303571,1937.1,1937.0,3.0]
[1742352054910,8.78303571,1937.1,1937.0,0.14607399]
[1742352055281,8.78303571,1937.1,1937.0,38.0]
[1742352055480,8.78303571,1937.1,1937.0,38.14118104]
[1742352057612,5.16236,1937.1,1937.0,38.14118104]
[1742352058114,8.78276571,1937.2,1937.0,38.14118104]
[1742352058293,5.16209,1937.2,1937.0,38.14118104]
[1742352059214,3.62067571,1937.1,1937.0,38.14118104]
[1742352060508,8.78302571,1937.1,1937.0,38.14118104]
[1742352062112,9.61582571,1937.1,1937.0,38.14118104]
[1742352062818,8.78302571,1937.1,1937.0,38.14118104]
[1742352064514,5.16235,1937.1,1937.0,38.14118104]
[1742352064685,8.78302571,1937.1,1937.0,38.14118104]
[1742352071523,8.74902571,1937.1,1937.0,38.14118104]
[1742352072121,11.04061728,1937.1,1937.0,35.14118104]
[1742352074516,9.56622571,1937.1,1937.0,35.14118104]
[1742352075230,9.56622571,1937.1,1937.0,0.14118104]
[1742352075599,5.16288,1936.9,1936.8,3.0]
[1742352075800,8.78355571,1936.9,1936.8,3.0]
[1742352076223,8.78355571,1936.9,1936.8,38.0]
[1742352078098,8.78355571,1936.9,1936.8,38.1422636]
[1742352079719,9.60075571,1936.9,1936.8,35.1422636]
[1742352079920,11.07710228,1936.9,1936.8,35.1422636]
[1742352080124,14.69777799,1936.9,1936.8,35.1422636]
[1742352081709,11.4618978,1936.9,1936.8,35.1422636]
[1742352082936,9.98555123,1936.9,1936.8,35.1422636]
[1742352092756,13.60622694,1936.9,1936.8,35.1422636]
[1742352093256,9.98555123,1936.9,1936.8,35.1422636]
[1742352093662,9.98555123,1936.9,1936.8,0.1422636]
[1742352094024,5.16315,1936.8,1936.7,0.01631486]
[1742352094226,6.74257117,1936.8,1936.7,0.01631486]
[1742352094423,6.74257117,1936.8,1936.7,0.14270576]
[1742352094676,10.32818,1936.5,1936.2,3.1843]
[1742352094962,13.94887571,1936.5,1936.2,3.1843]
[1742352095144,8.78473571,1936.5,1936.4,3.0]
[1742352095331,13.94892571,1936.5,1936.2,3.1843]
[1742352095531,13.94892571,1936.5,1936.2,4.15044659]
[1742352095758,13.94892571,1936.5,1936.4,38.0]
[1742352096458,5.16406,1936.5,1936.4,38.0]
[1742352097030,8.78473571,1936.5,1936.4,38.0]
[1742352101769,5.16375,1936.6,1936.4,38.0]
[1742352101976,8.78409571,1936.7,1936.5,3.88747625]
[1742352102136,8.78409571,1936.7,1936.5,3.0]
[1742352102745,13.94775571,1936.7,1936.5,3.0]
[1742352103135,5.16368,1936.6,1936.5,3.0]
[1742352104470,5.92938,1936.6,1936.5,3.0]
[1742352107370,5.16368,1936.6,1936.5,3.0]
[1742352107865,8.78435571,1936.6,1936.5,3.0]
[1742352108257,8.78435571,1936.6,1936.5,3.14325302]
[1742352109947,10.17913328,1936.6,1936.5,0.14325302]
[1742352110144,10.94483328,1936.6,1936.5,0.14325302]
[1742352110846,15.82883328,1936.6,1936.5,0.14325302]
[1742352111258,5.92965,1936.5,1936.4,35.0]
[1742352111470,11.71415899,1936.5,1936.4,35.0]
[1742352111773,11.64960404,1936.5,1936.4,35.1435086]
[1742352116267,11.64960404,1936.5,1936.4,0.1435086]
[1742352116462,5.16528,1936.0,1935.9,3.0]
[1742352116664,8.78595571,1936.0,1935.9,3.0]
[1742352116889,3.62067571,1936.0,1935.7,3.0]
[1742352117044,8.78633571,1935.9,1935.7,3.0]
[1742352117249,8.78633571,1935.9,1935.8,38.0]
[1742352119073,8.78595571,1936.0,1935.8,38.1843]
[1742352119274,5.16528,1936.0,1935.8,38.1843]
[1742352119447,8.78595571,1936.0,1935.8,38.1843]
[1742352119979,3.62067571,1935.9,1935.8,38.1843]
[1742352120676,5.16528,1936.0,1935.8,38.1843]
[1742352120677,8.78595571,1936.0,1935.8,38.1843]
[1742352121168,3.62067571,1936.0,1935.8,38.1843]
[1742352121374,8.78599571,1936.0,1935.8,38.1843]
[1742352122273,3.62067571,1935.9,1935.8,38.1843]
[1742352122782,8.78622571,1935.9,1935.8,38.0]
[1742352124257,8.78622571,1935.9,1935.8,38.13991137]
[1742352125000,3.62067571,1935.9,1935.8,38.32421137]
[1742352125354,8.78599571,1936.0,1935.9,3.0]
[1742352125652,3.62067571,1936.0,1935.9,3.13977612]
[1742352127276,8.78575571,1936.1,1935.9,3.13977612]
[1742352130988,8.78575571,1936.1,1936.0,35.0]
[1742352131367,8.78575571,1936.1,1936.0,35.13955051]
[1742352131783,3.62067571,1936.1,1936.0,35.13955051]
[1742352132565,8.78569571,1936.1,1936.0,35.13955051]
[1742352133085,10.97854028,1936.1,1936.0,35.13955051]
[1742352134005,19.48421599,1936.1,1936.0,35.13955051]
[1742352134156,15.86354028,1936.1,1936.0,35.13955051]
[1742352135291,19.48421599,1936.1,1936.0,35.13955051]
[1742352136459,19.48421599,1936.1,1936.0,0.13955051]
[1742352136886,5.16599,1935.8,1935.5,3.0]
[1742352137092,3.62067571,1935.7,1935.5,3.0]
[1742352137393,8.78666571,1935.8,1935.6,35.0]
[1742352137963,3.62067571,1935.7,1935.6,38.0]
[1742352138165,3.62067571,1935.7,1935.6,38.1402422]
[1742352138362,8.78675571,1935.7,1935.6,38.1402422]
[1742352139591,9.58455571,1935.7,1935.6,38.1402422]
[1742352140194,11.05961028,1935.7,1935.6,38.1402422]
[1742352140375,11.05961028,1935.7,1935.6,35.1402422]
[1742352143697,11.44530924,1935.7,1935.6,35.1402422]
[1742352144391,7.82463353,1935.7,1935.6,35.1402422]
[1742352144572,11.44530924,1935.7,1935.6,35.1402422]
[1742352145390,11.44530924,1935.7,1935.6,0.1402422]
[1742352145597,5.16669,1935.5,1935.2,3.1843]
[1742352145894,5.16669,1935.5,1935.4,3.0]
[1742352146466,5.16669,1935.5,1935.2,3.1843]
[1742352146666,3.62067571,1935.4,1935.2,3.1843]
[1742352146867,3.62067571,1935.4,1935.3,35.0]
[1742352147809,8.78756571,1935.4,1935.3,35.0]
[1742352149568,1.18349896,1935.7,1935.4,3.0]
[1742352149569,5.16625,1935.7,1935.4,3.0]
[1742352149752,8.78669571,1935.8,1935.5,0.1843]
[1742352150248,3.62067571,1935.7,1935.5,0.1843]
[1742352150653,9.16769612,1936.0,1935.5,0.1843]
[1742352150833,3.62067571,1935.9,1935.7,0.1843]
[1742352151034,3.62067571,1935.8,1935.7,0.1843]
[1742352153175,3.62067571,1935.8,1935.7,0.32503364]
[1742352153375,8.78649571,1935.8,1935.7,0.14073364]
[1742352153676,8.78649571,1935.8,1935.5,5.09426819]
[1742352153863,8.78649571,1935.8,1935.7,0.14057694]
[1742352154064,8.78649571,1935.8,1935.6,0.14074837]
[1742352154262,8.78649571,1935.8,1935.7,0.14057694]
[1742352154575,8.78649571,1935.8,1935.5,4.22373988]
[1742352154875,8.78649571,1935.8,1935.6,0.14074837]
[1742352155369,3.62067571,1935.7,1935.6,0.14074837]
[1742352155574,3.62067571,1935.7,1935.4,3.87058164]
[1742352155575,8.78675571,1935.7,1935.4,3.87058164]
[1742352155788,8.78675571,1935.7,1935.5,0.14075108]
[1742352156199,5.16635,1935.6,1935.5,0.14075108]
[1742352157089,8.78702571,1935.6,1935.5,0.14075108]
[1742352158675,5.16635,1935.6,1935.5,0.14075108]
[1742352158867,8.78702571,1935.6,1935.5,0.14075108]
[1742352159247,3.62067571,1935.6,1935.5,0.14075108]
[1742352161778,8.78702571,1935.6,1935.3,3.1843]
[1742352161981,3.62067571,1935.5,1935.4,38.14092255]
[1742352162478,8.78729571,1935.5,1935.4,38.14092255]
[1742352165568,5.16608,1935.8,1935.4,38.14092255]
[1742352165751,13.95283571,1935.8,1935.4,38.14092255]
[1742352165961,3.62067571,1935.7,1935.4,38.14092255]
[1742352166163,3.62067571,1935.7,1935.4,43.30776255]
[1742352167156,3.62067571,1935.7,1935.5,3.0]
[1742352167357,3.62067571,1935.7,1935.6,0.14107389]
[1742352169356,3.62067571,1935.7,1935.6,38.0]
[1742352169561,8.78675571,1935.7,1935.6,38.14103169]
[1742352171489,10.93713628,1935.7,1935.6,38.14103169]
[1742352172887,10.18203628,1935.7,1935.6,38.14103169]
[1742352173088,8.78675571,1935.7,1935.6,38.14103169]
[1742352174291,9.54995571,1935.7,1935.6,38.14103169]
[1742352176987,8.78675571,1935.7,1935.6,35.14103169]
[1742352177187,14.43395571,1935.7,1935.6,0.14103169]
[1742352177491,5.16727,1935.3,1935.0,1.19440519]
[1742352177675,8.78809571,1935.2,1935.1,35.0]
[1742352178192,8.78809571,1935.2,1935.1,38.0]
[1742352179661,3.62067571,1935.2,1935.1,38.0]
[1742352180286,8.78794571,1935.3,1935.1,38.0]
[1742352180499,3.62067571,1935.2,1935.1,38.0]
[1742352181011,3.62067571,1935.3,1935.1,38.1843]
[1742352182597,8.78730571,1935.5,1935.2,3.0]
[1742352183202,8.78730571,1935.5,1935.3,0.14188376]
[1742352184429,3.62067571,1935.5,1935.3,0.14188376]
[1742352185513,8.78734571,1935.5,1935.3,0.14188376]
[1742352185685,3.62067571,1935.5,1935.3,0.14188376]
[1742352185879,8.78731571,1935.5,1935.3,0.14188376]
[1742352186310,8.78731571,1935.5,1935.4,35.0]
[1742352186678,8.78731571,1935.5,1935.4,35.14171227]
[1742352196488,11.01142928,1935.5,1935.4,35.14171227]
[1742352198012,10.25802928,1935.5,1935.4,35.14171227]
[1742352198628,8.78731571,1935.5,1935.4,35.14171227]
[1742352199811,8.78731571,1935.5,1935.4,0.14171227]
[1742352200213,8.78731571,1935.5,1935.2,0.1843]
[1742352200416,8.78731571,1935.5,1935.4,35.14144695]
[1742352203233,3.62067571,1935.5,1935.4,35.14144695]
[1742352206998,5.1661,1935.7,1935.5,3.0]
[1742352207199,3.62067571,1935.6,1935.4,3.0]
[1742352207399,3.51867571,1935.6,1935.4,3.0]
[1742352207599,3.51867571,1935.6,1935.5,38.0]
[1742352211417,8.68502571,1935.6,1935.5,38.0]
[1742352211737,9.48682571,1935.6,1935.5,38.0]
[1742352211902,10.95211828,1935.6,1935.5,35.0]
[1742352213227,10.95211828,1935.6,1935.5,35.14101024]
[1742352213433,9.48682571,1935.6,1935.5,35.14101024]
[1742352215025,9.48682571,1935.6,1935.5,0.14101024]
[1742352215340,14.65341571,1935.6,1935.2,3.1843]
[1742352215499,11.13474,1935.6,1935.5,35.14101024]
[1742352215704,14.75541571,1935.6,1935.5,35.0]
[1742352215934,14.75541571,1935.6,1935.5,35.14101024]
[1742352216335,5.16623,1935.7,1935.5,35.14101024]
[1742352216543,3.62067571,1935.7,1935.5,35.14101024]
[1742352217635,8.78677571,1935.7,1935.5,35.14101024]
[1742352222846,3.62067571,1935.7,1935.5,35.14101024]
[1742352223051,8.78678571,1935.7,1935.5,35.14101024]
[1742352224351,13.95311571,1935.7,1935.5,35.14101024]
[1742352224574,5.16635,1935.6,1935.5,35.14101024]
[1742352224850,5.96585,1935.6,1935.5,35.14101024]
[1742352226532,6.03043418,1935.6,1935.5,35.14101024]
[1742352227255,5.96585,1935.6,1935.5,35.14101024]
[1742352227753,6.03043416,1935.6,1935.5,35.14101024]
[1742352227947,6.03043415,1935.6,1935.5,35.14101024]
[1742352230059,5.96585,1935.6,1935.5,35.14101024]
[1742352230235,6.03043412,1935.6,1935.5,35.14101024]
[1742352230633,8.04681856,1935.6,1935.5,35.14101024]
[1742352230843,7.98223444,1935.6,1935.5,35.14101024]
[1742352239260,11.52665812,1935.6,1935.5,35.14101024]
[1742352241164,7.33831184,1935.6,1935.5,35.14101024]
[1742352243170,8.78590227,1935.6,1935.5,35.14101024]
[1742352244283,8.78590227,1935.6,1935.5,0.14101024]
[1742352244648,8.78590227,1935.6,1935.3,0.1843]
[1742352244849,8.78590227,1935.6,1935.5,35.0]
[1742352245049,8.78590227,1935.6,1935.5,35.14137799]
[1742352251184,3.61955227,1935.6,1935.5,35.14137799]
[1742352251550,8.78590227,1935.6,1935.5,35.14137799]
[1742352253195,3.61955227,1935.6,1935.5,35.14137799]
[1742352253604,8.78590227,1935.6,1935.5,35.14137799]
[1742352254479,9.60030227,1935.6,1935.5,35.14137799]
[1742352255959,11.0769435,1935.6,1935.5,35.14137799]
[1742352256159,11.45959259,1935.6,1935.5,35.14137799]
[1742352260575,11.45959259,1935.6,1935.5,35.0]
[1742352260775,11.45959259,1935.6,1935.5,35.14135386]
[1742352263309,11.0769435,1935.6,1935.5,35.14135386]
[1742352263680,11.0823435,1935.6,1935.5,35.14135386]
[1742352265112,12.1987814,1935.6,1935.5,35.14135386]
[1742352266794,12.1987814,1935.6,1935.5,0.14135386]
[1742352267119,5.16769,1935.1,1935.0,0.1843]
[1742352267412,7.34025927,1935.1,1935.0,0.1843]
[1742352267784,7.34025927,1935.1,1935.0,35.1843]
[1742352270018,7.34025927,1935.1,1935.0,35.0]
[1742352273218,7.34025927,1935.1,1935.0,35.13770781]
[1742352289404,11.53719847,1935.1,1935.0,35.13770781]
[1742352289737,11.53719847,1935.1,1934.3,6.14]
[1742352289738,5.16948,1934.5,1934.3,0.1843]
[1742352290025,2.17256927,1934.4,1934.3,0.1843]
[1742352290227,2.17256927,1934.4,1934.3,3.1843]
[1742352290426,7.34204927,1934.5,1934.3,3.1843]
[1742352290601,2.17256927,1934.4,1934.3,3.1843]
[1742352291333,2.17256927,1934.4,1934.3,38.1843]
[1742352292835,2.17256927,1934.5,1934.3,38.1843]
[1742352295004,2.17256927,1934.4,1934.3,38.1843]
[1742352296851,2.17256927,1934.5,1934.3,38.1843]
[1742352297448,2.17256927,1934.5,1934.4,0.12399822]
[1742352297750,2.17256927,1934.6,1934.5,0.1843]
[1742352298131,2.17256927,1934.6,1934.5,0.30837287]
[1742352299014,2.17256927,1934.7,1934.5,0.30837287]
[1742352299937,2.17256927,1934.7,1934.6,3.0]
[1742352300562,2.17256927,1934.7,1934.6,3.12386519]
[1742352301542,2.17256927,1934.7,1934.6,38.12386519]
[1742352301939,7.34132927,1934.7,1934.6,38.12386519]
[1742352302951,2.17256927,1934.7,1934.6,38.12386519]
[1742352303417,7.34132927,1934.7,1934.6,38.12386519]
[1742352303620,8.5923162,1934.7,1934.6,38.12386519]
[1742352304273,7.34132927,1934.7,1934.6,38.12386519]
[1742352306768,7.34132927,1934.7,1934.6,0.12386519]
[1742352307129,5.16906,1934.6,1934.3,3.1843]
[1742352307366,5.16906,1934.6,1934.5,35.0]
[1742352307869,5.16906,1934.6,1934.5,35.12408486]
[1742352308508,7.34162927,1934.6,1934.5,35.12408486]
[1742352314095,7.34162927,1934.6,1934.5,38.12408486]
[1742352314299,7.91351944,1934.6,1934.5,35.12408486]
[1742352314465,7.34162927,1934.6,1934.5,35.12408486]
[1742352314664,7.34158927,1934.6,1934.5,35.12408486]
[1742352317410,2.17256927,1934.6,1934.5,35.12408486]